[Event "LAT-ch 2020"]
[Site "Riga"]
[Date "2020.08.30"]
[Round "9.4"]
[White "Mierins, Eriks"]
[Black "Stepins, Edgars"]
[Result "1/2-1/2"]
[ECO "B80"]
[WhiteElo "2199"]
[BlackElo "2284"]
[Annotator "ChessBase"]
[PlyCount "160"]
[EventDate "2020.08.24"]
[EventType "swiss"]
[EventCountry "LAT"]
[SourceTitle "playchess.com"]
[Source "ChessBase"]
[SourceQuality "1"]
[TimeControl "5400+30"]

1. e4 {[%emt 0:00:00]} c5 {[%emt 0:00:00]} 2. Nf3 {[%emt 0:00:00]} d6 {[%emt 0:00:00]} 3. d4 {[%emt 0:00:00]} cxd4 {[%emt 0:00:00]} 4. Nxd4 {[%emt 0:00:00]} Nf6 {[%emt 0:00:00]} 5. Nc3 {[%emt 0:00:00]} a6 {[%emt 0:00:00]} 6. Be3 {[%emt 0:00:00]} b5 {[%emt 0:02:00]} 7. f3 {[%emt 0:00:27]} Bb7 {[%emt 0:00:11]} 8. Qd2 {[%emt 0:00:41]} e6 {[%emt 0:04:06]} 9. a4 {[%emt 0:00:28]} b4 {[%emt 0:02:39]} 10. Na2 {[%emt 0:01:27]} d5 {[%emt 0:03:17]} 11. e5 {[%emt 0:00:06]} Nfd7 {[%emt 0:00:10]} 12. f4 {[%emt 0:00:07]} Nc5 {[%emt 0:01:02]} 13. c3 {[%emt 0:02:57]} Ne4 {[%emt 0:06:14]} 14. Qc2 {[%emt 0:00:17]} bxc3 {[%emt 0:01:29]} 15. bxc3 {[%emt 0:01:16]} Nd7 {[%emt 0:01:44]} 16. Be2 {[%emt 0:00:50]} g6 {[%emt 0:18:00]} 17. Rb1 {[%emt 0:01:22]} Qc7 {[%emt 0:00:24]} 18. O-O {[%emt 0:00:24]} Be7 {[%emt 0:00:54]} 19. c4 {[%emt 0:03:19]} O-O {[%emt 0:04:01]} 20. Nc3 {[%emt 0:03:43]} Nxc3 {[%emt 0:14:01]} 21. Qxc3 {[%emt 0:00:09]} dxc4 {[%emt 0:00:44]} 22. Qxc4 {[%emt 0:00:26]} Qxc4 {[%emt 0:00:21]} 23. Bxc4 {[%emt 0:00:05]} Be4 {[%emt 0:00:08]} 24. Nxe6 {[%emt 0:05:22]} Rfc8 {[%emt 0:18:36]} 25. Rbc1 {[%emt 0:00:13]} h6 {[%emt 0:04:46]} 26. Nd4 {[%emt 0:13:14]} Nc5 {[%emt 0:04:32]} 27. f5 {[%emt 0:05:53]} Nd3 {[%emt 0:02:23]} 28. fxg6 {[%emt 0:22:18]} Bxg6 {[%emt 0:00:38]} 29. e6 {[%emt 0:07:36]} Nxc1 {[%emt 0:01:43]} 30. exf7+ {[%emt 0:00:08]} Kh7 {[%emt 0:00:15]} 31. Rxc1 {[%emt 0:00:24]} Ba3 {[%emt 0:01:28]} 32. Rc3 {[%emt 0:01:19]} Bb2 {[%emt 0:02:39]} 33. f8=Q {[%emt 0:00:19]} Rxf8 {[%emt 0:00:07]} 34. Rb3 {[%emt 0:00:06]} Rab8 {[%emt 0:00:19]} 35. Rxb8 {[%emt 0:00:30]} Rxb8 {[%emt 0:00:05]} 36. Bxa6 {[%emt 0:01:51]} Rb4 {[%emt 0:03:27]} 37. Ne6 {[%emt 0:02:09]} Bf5 {[%emt 0:01:52]} 38. Nf4 {[%emt 0:00:31]} Rb3 {[%emt 0:01:02]} 39. Kf2 {[%emt 0:00:32]} Be4 {[%emt 0:00:17]} 40. Be2 {[%emt 0:01:58]} Be5 {[%emt 0:01:01]} 41. Ne6 {[%emt 0:10:56]} Rb2 {[%emt 0:00:52]} 42. Bd4 {[%emt 0:00:40]} Bxd4+ {[%emt 0:00:13]} 43. Nxd4 {[%emt 0:00:07]} Rb4 {[%emt 0:00:11]} 44. Ne6 {[%emt 0:04:39]} Bd5 {[%emt 0:00:33]} 45. Nc7 {[%emt 0:01:23]} Bc6 {[%emt 0:00:11]} 46. a5 {[%emt 0:01:12]} Rb2 {[%emt 0:01:00]} 47. g4 {[%emt 0:01:32]} Kg7 {[%emt 0:00:44]} 48. a6 {[%emt 0:00:42]} Ra2 {[%emt 0:00:04]} 49. Ke3 {[%emt 0:00:25]} Kf6 {[%emt 0:00:32]} 50. Bc4 {[%emt 0:04:00]} Ra3+ {[%emt 0:01:13]} 51. Kd4 {[%emt 0:00:19]} Kg5 {[%emt 0:00:16]} 52. Kc5 {[%emt 0:00:57]} Bf3 {[%emt 0:00:11]} 53. Kb6 {[%emt 0:05:03]} Kxg4 {[%emt 0:00:27]} 54. Be6+ {[%emt 0:00:54]} Kh4 {[%emt 0:01:59]} 55. a7 {[%emt 0:00:07]} h5 {[%emt 0:00:39]} 56. Nd5 {[%emt 0:01:29]} Ra1 {[%emt 0:00:47]} 57. Nc7 {[%emt 0:00:40]} Kg5 {[%emt 0:00:26]} 58. Bd5 {[%emt 0:00:11]} Bxd5 {[%emt 0:00:33]} 59. Nxd5 {[%emt 0:00:04]} Kg4 {[%emt 0:00:23]} 60. Nb4 {[%emt 0:01:20]} Rxa7 {[%emt 0:00:18]} 61. Kxa7 {[%emt 0:00:10]} Kh3 {[%emt 0:00:14]} 62. Nd3 {[%emt 0:00:11]} h4 {[%emt 0:00:38]} 63. Nf4+ {[%emt 0:00:10]} Kg4 {[%emt 0:00:19]} 64. Ng6 {[%emt 0:00:55]} h3 {[%emt 0:00:10]} 65. Kb6 {[%emt 0:00:06]} Kg5 {[%emt 0:00:34]} 66. Ne7 {[%emt 0:00:20]} Kf4 {[%emt 0:00:07]} 67. Kc5 {[%emt 0:00:06]} Kf3 {[%emt 0:00:14]} 68. Kd4 {[%emt 0:00:04]} Kf4 {[%emt 0:01:16]} 69. Nd5+ {[%emt 0:01:25]} Kf3 {[%emt 0:00:12]} 70. Nf6 {[%emt 0:00:15]} Kf4 {[%emt 0:00:31]} 71. Ne4 {[%emt 0:00:46]} Kf3 {[%emt 0:00:03]} 72. Nd2+ {[%emt 0:01:11]} Ke2 {[%emt 0:00:09]} 73. Nb3 {[%emt 0:00:49]} Kf3 {[%emt 0:00:06]} 74. Nc5 {[%emt 0:00:14]} Kf4 {[%emt 0:00:08]} 75. Kd3 {[%emt 0:00:26]} Kf3 {[%emt 0:00:06]} 76. Kd2 {[%emt 0:00:14]} Kf2 {[%emt 0:00:17]} 77. Ne6 {[%emt 0:00:54]} Kg2 {[%emt 0:00:54]} 78. Ke2 {[%emt 0:00:27]} Kxh2 {[%emt 0:00:06]} 79. Kf2 {[%emt 0:00:16]} Kh1 {[%emt 0:00:04]} 80. Nd4 {[%emt 0:00:50]} h2 {[%emt 0:00:11]} 1/2-1/2